bitfinex/quotes_BTCUSD_20230906
["timestamp","ask_amount","ask_price","bid_price","bid_amount"]
[1694003705204,5.2153458,25752.0,25751.0,1.35108883]
[1694003705381,5.49509897,25752.0,25751.0,1.35108883]
[1694003705593,5.49473897,25752.0,25751.0,1.35108883]
[1694003705783,5.1926658,25752.0,25751.0,1.35108883]
[1694003705996,5.47409645,25752.0,25751.0,1.35108883]
[1694003706189,4.9991458,25752.0,25751.0,1.35108883]
[1694003706372,5.28573772,25752.0,25751.0,1.35108883]
[1694003706567,5.28501772,25752.0,25751.0,1.35108883]
[1694003706766,5.44217772,25752.0,25751.0,1.35108883]
[1694003706970,5.46629772,25752.0,25751.0,1.35108883]
[1694003707189,5.49641772,25752.0,25751.0,1.35108883]
[1694003707389,5.50433772,25752.0,25751.0,1.35108883]
[1694003707643,5.50325772,25752.0,25751.0,1.35108883]
[1694003707849,5.50805772,25752.0,25751.0,1.35108883]
[1694003708024,5.50769772,25752.0,25751.0,1.35108883]
[1694003708201,5.50661772,25752.0,25751.0,1.35108883]
[1694003708402,5.50649772,25752.0,25751.0,1.35108883]
[1694003708745,5.50529772,25752.0,25751.0,1.35108883]
[1694003708972,5.50685772,25752.0,25751.0,1.35108883]
[1694003709187,5.50577772,25752.0,25751.0,1.35108883]
[1694003709410,5.50613772,25752.0,25751.0,1.35108883]
[1694003709593,5.50637772,25752.0,25751.0,1.35108883]
[1694003709800,5.50781772,25752.0,25751.0,1.35108883]
[1694003709994,5.50841772,25752.0,25751.0,1.35108883]
[1694003710212,5.58841772,25752.0,25751.0,1.35108883]
[1694003710410,5.60137772,25752.0,25751.0,1.35108883]
[1694003710650,5.59837772,25752.0,25751.0,1.35108883]
[1694003710868,5.59297772,25752.0,25751.0,1.35108883]
[1694003711055,5.59345772,25752.0,25751.0,1.35108883]
[1694003711257,5.59213772,25752.0,25751.0,1.35108883]
[1694003711479,5.59177772,25752.0,25751.0,1.35108883]
[1694003711683,5.59129772,25752.0,25751.0,1.35108883]
[1694003711883,5.59117772,25752.0,25751.0,1.35108883]
[1694003712313,5.59129772,25752.0,25751.0,1.35108883]
[1694003712522,5.59057772,25752.0,25751.0,1.35108883]
[1694003712708,5.50321772,25752.0,25751.0,1.35108883]
[1694003712907,5.52973772,25752.0,25751.0,1.35108883]
[1694003713110,5.55097772,25752.0,25751.0,1.35108883]
[1694003713322,5.57065772,25752.0,25751.0,1.35108883]
[1694003713497,5.59153772,25752.0,25751.0,1.35108883]
[1694003713703,5.59189772,25752.0,25751.0,1.35108883]
[1694003713900,5.59285772,25752.0,25751.0,1.35108883]
[1694003714118,5.59273772,25752.0,25751.0,1.35108883]
[1694003714437,5.3061458,25752.0,25751.0,1.35108883]
[1694003714636,5.3066258,25752.0,25751.0,1.35108883]
[1694003714877,5.58529772,25752.0,25751.0,1.35108883]
[1694003715348,5.58493772,25752.0,25751.0,1.35108883]
[1694003715593,5.58373772,25752.0,25751.0,1.35108883]
[1694003715801,5.58217772,25752.0,25751.0,1.35108883]
[1694003715960,5.58229772,25752.0,25751.0,1.35108883]
[1694003716157,5.58217772,25752.0,25751.0,1.35108883]
[1694003716358,5.2990658,25752.0,25751.0,1.35108883]
[1694003716557,5.3134658,25752.0,25751.0,1.35108883]
[1694003716791,5.3138258,25752.0,25751.0,1.35108883]
[1694003716996,5.3137058,25752.0,25751.0,1.35108883]
[1694003717204,5.3138258,25752.0,25751.0,1.35108883]
[1694003717383,5.3135858,25752.0,25751.0,1.35108883]
[1694003717809,5.3138258,25752.0,25751.0,1.35108883]
[1694003717959,5.3135858,25752.0,25751.0,1.35108883]
[1694003718156,5.3133458,25752.0,25751.0,1.35108883]
[1694003718405,5.3128658,25752.0,25751.0,1.35108883]
[1694003718810,5.3127458,25752.0,25751.0,1.35108883]
[1694003719053,5.3200658,25752.0,25751.0,1.35108883]
[1694003719235,5.3177858,25752.0,25751.0,1.35108883]
[1694003719449,5.3161058,25752.0,25751.0,1.35108883]
[1694003719681,5.3179058,25752.0,25751.0,1.35108883]
[1694003719892,5.3209058,25752.0,25751.0,1.35108883]
[1694003720098,5.3215058,25752.0,25751.0,1.35108883]
[1694003720301,5.3228258,25752.0,25751.0,1.35108883]
[1694003720504,5.3227058,25752.0,25751.0,1.35108883]
[1694003720692,5.3201858,25752.0,25751.0,1.35108883]
[1694003720989,5.3225858,25752.0,25751.0,1.35108883]
[1694003721247,5.3228258,25752.0,25751.0,1.35108883]
[1694003721448,5.3233058,25752.0,25751.0,1.35108883]
[1694003721649,5.3230658,25752.0,25751.0,1.35108883]
[1694003721808,5.3224658,25752.0,25751.0,1.35108883]
[1694003722010,5.3230658,25752.0,25751.0,1.35108883]
[1694003722214,5.3228258,25752.0,25751.0,1.35108883]
[1694003722677,5.3229458,25752.0,25751.0,1.35108883]
[1694003722912,5.60017772,25752.0,25751.0,1.35108883]
[1694003723095,5.59561772,25752.0,25751.0,1.35108883]
[1694003723296,5.59549772,25752.0,25751.0,1.35108883]
[1694003723501,5.60077772,25752.0,25751.0,1.35108883]
[1694003723709,5.60137772,25752.0,25751.0,1.35108883]
[1694003723918,5.59081772,25752.0,25751.0,1.35108883]
[1694003724135,5.59249772,25752.0,25751.0,1.35108883]
[1694003724355,5.59033772,25752.0,25751.0,1.35108883]
[1694003724565,5.59237772,25752.0,25751.0,1.35108883]
[1694003724777,5.58805772,25752.0,25751.0,1.35108883]
[1694003724987,5.59129772,25752.0,25751.0,1.35108883]
[1694003725182,5.59033772,25752.0,25751.0,1.35108883]
[1694003725365,5.59105772,25752.0,25751.0,1.35108883]
[1694003725560,5.59249772,25752.0,25751.0,1.35108883]
[1694003725761,5.58445772,25752.0,25751.0,1.35108883]
[1694003725960,5.58349772,25752.0,25751.0,1.35108883]
[1694003726262,5.58769772,25752.0,25751.0,1.35108883]
[1694003726475,5.58829772,25752.0,25751.0,1.35108883]
[1694003726669,5.58997772,25752.0,25751.0,1.35108883]
[1694003726829,5.59033772,25752.0,25751.0,1.35108883]
[1694003727027,5.59021772,25752.0,25751.0,1.35108883]
[1694003727226,5.58997772,25752.0,25751.0,1.35108883]
[1694003727519,5.59009772,25752.0,25751.0,1.35108883]
[1694003727722,5.58997772,25752.0,25751.0,1.35108883]
[1694003728164,5.85715772,25752.0,25751.0,1.35108883]
[1694003728349,5.5575458,25752.0,25751.0,1.35108883]
[1694003728594,5.5922858,25752.0,25751.0,1.35108883]
[1694003728801,5.5890458,25752.0,25751.0,1.35108883]
[1694003729022,5.5650458,25752.0,25751.0,1.35108883]
[1694003729257,5.5607258,25752.0,25751.0,1.23981512]
[1694003729461,5.5592858,25752.0,25751.0,1.23981512]
[1694003729670,5.5886858,25752.0,25751.0,1.23981512]
[1694003730088,5.5405058,25752.0,25751.0,1.23981512]
[1694003730329,5.5888658,25752.0,25751.0,1.23131882]
[1694003730568,5.5906658,25752.0,25751.0,1.0371133]
[1694003730751,5.5786058,25752.0,25751.0,1.0371133]
[1694003730955,5.5854458,25752.0,25751.0,1.0371133]
[1694003731192,5.5913858,25752.0,25751.0,1.0371133]
[1694003731405,5.6018258,25752.0,25751.0,1.0371133]
[1694003731633,5.6027258,25752.0,25751.0,1.0371133]
[1694003731836,5.6056058,25752.0,25751.0,1.0371133]
[1694003732052,5.8944458,25752.0,25751.0,0.84290778]
[1694003732257,5.8685258,25752.0,25751.0,0.84290778]
[1694003732435,5.8674458,25752.0,25751.0,0.84290778]
[1694003732661,5.8910258,25752.0,25751.0,0.84290778]
[1694003732793,5.8692458,25752.0,25751.0,0.84290778]
[1694003732999,5.8577258,25752.0,25751.0,0.84290778]
[1694003733202,5.6361458,25752.0,25751.0,0.64870226]
[1694003733401,5.6258258,25752.0,25751.0,0.64870226]
[1694003733598,5.6245058,25752.0,25751.0,0.64870226]
[1694003733815,5.6252258,25752.0,25751.0,0.64870226]
[1694003734031,5.6261858,25752.0,25751.0,0.64870226]
[1694003734306,5.6281058,25752.0,25751.0,0.64870226]
[1694003734508,5.6285858,25752.0,25751.0,0.45449674]
[1694003734737,5.6289458,25752.0,25751.0,0.45449674]
[1694003734909,5.6293058,25752.0,25751.0,0.45449674]
[1694003735116,5.6305058,25752.0,25751.0,0.45449674]
[1694003735359,5.6307458,25752.0,25751.0,0.45449674]
[1694003735584,5.6309858,25752.0,25751.0,0.45449674]
[1694003735835,5.6312258,25752.0,25751.0,0.26029122]
[1694003736042,5.6315858,25752.0,25751.0,0.26029122]
[1694003736299,5.6330258,25752.0,25751.0,0.26029122]
[1694003736536,5.6333858,25752.0,25751.0,0.26029122]
[1694003736746,5.6331458,25752.0,25751.0,0.26029122]
[1694003736982,5.6326658,25752.0,25751.0,0.26029122]
[1694003737228,5.6330258,25752.0,25751.0,0.26029122]
[1694003737500,5.6332658,25752.0,25751.0,0.26029122]
[1694003737772,5.6251058,25752.0,25751.0,0.26029122]
[1694003738032,5.6254658,25752.0,25751.0,0.0660857]
[1694003738296,5.6248658,25752.0,25751.0,0.0660857]
[1694003738528,5.6251058,25752.0,25751.0,0.0660857]
[1694003738742,5.6247458,25752.0,25751.0,0.0660857]
[1694003738972,5.6258258,25752.0,25751.0,0.0660857]
[1694003739439,0.0595,25746.0,25745.0,1.747164]
[1694003739740,0.70172638,25746.0,25745.0,1.55295848]
[1694003739959,1.29133235,25746.0,25745.0,1.55295848]
[1694003740208,1.29157235,25746.0,25745.0,1.55295848]
[1694003740422,1.29169223,25746.0,25745.0,0.776833]
[1694003740671,1.29169223,25746.0,25745.0,1.553669]
[1694003740924,1.35469794,25746.0,25745.0,1.553669]
[1694003741160,1.35499794,25746.0,25745.0,1.553669]
[1694003741282,1.50752189,25746.0,25745.0,1.553669]
[1694003741470,1.63058906,25746.0,25745.0,1.553669]
[1694003741675,1.65566906,25746.0,25745.0,1.553672]
[1694003742058,1.65500906,25746.0,25745.0,1.553672]
[1694003742268,1.65512906,25746.0,25745.0,1.553672]
[1694003742469,1.65626906,25746.0,25745.0,1.553672]
[1694003742772,1.65698906,25746.0,25745.0,1.553672]
[1694003742980,1.53308189,25746.0,25745.0,1.553672]
[1694003743179,1.53422189,25746.0,25745.0,1.553672]
[1694003743351,1.53428189,25746.0,25745.0,1.553672]
[1694003743561,1.53638189,25746.0,25745.0,1.553672]
[1694003743763,1.72352678,25746.0,25745.0,1.553672]
[1694003743938,1.72388678,25746.0,25745.0,0.776836]
[1694003744137,1.72394678,25746.0,25745.0,0.776836]
[1694003744342,1.72400678,25746.0,25745.0,0.776836]
[1694003744544,1.72400678,25746.0,25744.0,0.776873]
[1694003744545,0.0595,25745.0,25744.0,0.776873]
[1694003744765,0.0595,25745.0,25744.0,2.330595]
[1694003744766,0.82255601,25745.0,25744.0,2.330595]
[1694003744997,0.77672734,25745.0,25744.0,2.330595]
[1694003745200,0.91297601,25745.0,25744.0,2.330595]
[1694003745417,0.77366734,25745.0,25744.0,2.330595]
[1694003745663,0.93921157,25745.0,25744.0,2.330595]
[1694003745863,0.96303157,25745.0,25744.0,2.330595]
[1694003746013,0.96261157,25745.0,25744.0,2.330595]
[1694003746388,0.98487157,25745.0,25744.0,2.330595]
[1694003746708,0.8918695,25745.0,25744.0,2.330595]
[1694003746923,0.8919295,25745.0,25744.0,2.330595]
[1694003747150,0.8906695,25745.0,25744.0,2.330595]
[1694003747359,0.8885695,25745.0,25744.0,2.330595]
[1694003747558,0.8882095,25745.0,25744.0,2.330595]
[1694003747761,0.8878495,25745.0,25744.0,2.330595]
[1694003747965,1.23770711,25745.0,25744.0,2.330595]
[1694003748160,1.23878711,25745.0,25744.0,2.290395]
[1694003748366,0.8891695,25745.0,25744.0,2.290395]
[1694003748596,0.8873695,25745.0,25744.0,2.290395]
[1694003748808,1.06551439,25745.0,25744.0,2.290395]
[1694003749019,1.06431439,25745.0,25744.0,2.290395]
[1694003749214,1.06437439,25745.0,25744.0,2.290395]
[1694003749568,1.06377439,25745.0,25744.0,2.290395]
[1694003749798,1.06383439,25745.0,25744.0,2.290395]
[1694003750019,1.06395439,25745.0,25744.0,2.290395]
[1694003750196,1.06401439,25745.0,25744.0,2.290395]
[1694003750417,1.06263439,25745.0,25744.0,2.290395]
[1694003750584,1.06455439,25745.0,25744.0,2.290395]
[1694003750780,0.92518572,25745.0,25744.0,2.290395]
[1694003750986,0.92542572,25745.0,25744.0,2.290395]
[1694003751295,1.2534388,25745.0,25744.0,2.290395]
[1694003751495,1.2537988,25745.0,25744.0,2.290395]
[1694003751699,1.2539788,25745.0,25744.0,2.290395]
[1694003752023,1.2540988,25745.0,25744.0,2.290395]
[1694003752220,1.2548188,25745.0,25744.0,2.290395]
[1694003752419,1.2550588,25745.0,25744.0,2.290395]
[1694003752620,1.2551788,25745.0,25744.0,2.290395]
[1694003752923,1.2555388,25745.0,25744.0,2.290395]
[1694003753147,1.1347988,25745.0,25744.0,2.290395]
[1694003753351,1.1349788,25745.0,25744.0,2.290395]
[1694003753556,1.1344988,25745.0,25744.0,2.290395]
[1694003753729,1.1352188,25745.0,25744.0,2.290395]
[1694003753936,1.1353988,25745.0,25744.0,2.290395]
[1694003754134,1.1355188,25745.0,25744.0,2.290395]
[1694003754338,1.1356388,25745.0,25744.0,2.290395]
[1694003754539,1.36833992,25745.0,25744.0,2.290395]
[1694003754725,1.36845992,25745.0,25744.0,2.290395]
[1694003754924,1.36863992,25745.0,25744.0,2.290395]
[1694003755184,1.36881992,25745.0,25744.0,2.290395]
[1694003755390,1.36947992,25745.0,25744.0,2.290395]
[1694003755603,1.43342515,25745.0,25744.0,2.290395]
[1694003755800,1.43348515,25745.0,25744.0,2.290395]
[1694003756122,1.43264515,25745.0,25744.0,2.290395]
[1694003756250,1.37037992,25745.0,25744.0,2.290395]
[1694003756473,1.36821992,25745.0,25744.0,2.290395]
[1694003756678,1.42922493,25745.0,25744.0,2.290395]
[1694003756933,1.42904493,25745.0,25744.0,2.290395]
[1694003757289,1.42964493,25745.0,25744.0,2.290395]
[1694003757830,1.42970493,25745.0,25744.0,2.290395]
[1694003758033,1.42964493,25745.0,25744.0,2.290395]
[1694003758347,1.42838493,25745.0,25744.0,2.290395]
[1694003758553,1.19472381,25745.0,25744.0,2.290395]
[1694003758755,1.19448381,25745.0,25744.0,2.290395]
[1694003758956,1.19430381,25745.0,25744.0,2.290395]
[1694003759162,1.19436381,25745.0,25744.0,2.290395]
[1694003759386,1.19454381,25745.0,25744.0,2.290395]
[1694003759581,1.19430381,25745.0,25744.0,2.290395]
[1694003759950,0.74003016,25745.0,25744.0,2.290395]
[1694003760124,0.61731866,25745.0,25744.0,2.290395]
[1694003764091,0.75071016,25745.0,25744.0,2.290395]
[1694003764296,0.76091016,25745.0,25744.0,2.290395]
[1694003764489,0.77735671,25745.0,25744.0,2.290395]
[1694003764711,0.77717671,25745.0,25744.0,2.290395]
[1694003764862,1.07305249,25745.0,25744.0,2.290395]
[1694003765068,1.13801567,25745.0,25744.0,2.290395]
[1694003765296,1.13477567,25745.0,25744.0,2.290395]
[1694003765501,1.13441567,25745.0,25744.0,2.290395]
[1694003765849,1.36687679,25745.0,25744.0,2.290395]
[1694003766080,1.1846519,25745.0,25744.0,2.290395]
[1694003766308,1.1855519,25745.0,25744.0,2.290395]
[1694003766480,0.95267078,25745.0,25744.0,2.290395]
[1694003766642,0.95297078,25745.0,25744.0,2.290395]
[1694003766844,0.95243078,25745.0,25744.0,2.290395]
[1694003767041,0.95225078,25745.0,25744.0,2.290395]
[1694003767342,0.95135078,25745.0,25744.0,2.290395]
[1694003767544,0.95159078,25745.0,25744.0,2.290395]
[1694003767752,0.95171078,25745.0,25744.0,2.290395]
[1694003767961,0.94871078,25745.0,25744.0,2.290395]
[1694003768374,0.94967078,25745.0,25744.0,2.290395]
[1694003768546,0.94931078,25745.0,25744.0,2.290395]
[1694003768778,0.94775078,25745.0,25744.0,2.290395]
[1694003768924,0.94745078,25745.0,25744.0,2.290395]
[1694003769127,0.94763078,25745.0,25744.0,2.290395]
[1694003769328,0.94991078,25745.0,25744.0,2.290395]
[1694003769536,0.95027078,25745.0,25744.0,2.290395]
[1694003769949,0.95021078,25745.0,25744.0,2.290395]
[1694003770238,0.94769078,25745.0,25744.0,2.290395]
[1694003770442,0.94805078,25745.0,25744.0,2.290395]
[1694003770666,0.94997078,25745.0,25744.0,2.290395]
[1694003770842,0.94949078,25745.0,25744.0,2.290395]
[1694003771039,0.95087078,25745.0,25744.0,2.290395]
[1694003771247,0.94025078,25745.0,25744.0,2.290395]
[1694003771463,0.94055078,25745.0,25744.0,2.290395]
[1694003771769,0.94145078,25745.0,25744.0,2.290395]
[1694003771970,0.94505078,25745.0,25744.0,2.290395]
[1694003772180,0.94685078,25745.0,25744.0,2.290395]
[1694003772388,0.94643078,25745.0,25744.0,2.290395]
[1694003772597,0.94691078,25745.0,25744.0,2.290395]
[1694003772803,0.94667078,25745.0,25744.0,2.290395]
[1694003773002,0.94661078,25745.0,25744.0,2.290395]
[1694003773323,0.94529078,25745.0,25744.0,2.290395]
[1694003773526,0.94541078,25745.0,25744.0,2.290395]
[1694003773836,0.94517078,25745.0,25744.0,2.290395]
[1694003774037,0.95105078,25745.0,25744.0,1.513528]
[1694003774243,0.95081078,25745.0,25744.0,1.513528]
[1694003774445,0.95165078,25745.0,25744.0,1.513528]
[1694003774630,0.95051078,25745.0,25744.0,1.513528]
[1694003774827,0.94805078,25745.0,25744.0,1.513528]
[1694003775029,0.94847078,25745.0,25744.0,1.513528]
[1694003775226,0.94835078,25745.0,25744.0,1.513528]
[1694003775431,0.94979078,25745.0,25744.0,1.513528]
[1694003775587,0.95045078,25745.0,25744.0,1.513528]
[1694003775782,0.95039078,25745.0,25744.0,1.513528]
[1694003776008,0.94877078,25745.0,25744.0,1.513528]
[1694003776222,0.94871078,25745.0,25744.0,1.513528]
[1694003776427,0.94841078,25745.0,25744.0,1.513528]
[1694003776765,0.9595,25744.0,25743.0,0.03160947]
[1694003777026,1.66617333,25744.0,25743.0,1.58539047]
[1694003777288,1.95485333,25744.0,25743.0,1.553781]
[1694003777544,1.81533333,25744.0,25743.0,2.330678]
[1694003777804,1.81455333,25744.0,25743.0,2.330678]
[1694003778051,1.84497333,25744.0,25743.0,2.330678]
[1694003778288,2.54479333,25744.0,25743.0,2.330678]
[1694003778528,2.54551333,25744.0,25743.0,2.330678]
[1694003778763,2.54647333,25744.0,25743.0,2.330678]
[1694003778977,2.57029333,25744.0,25743.0,2.330678]
[1694003779122,2.57011333,25744.0,25743.0,2.330678]
[1694003779330,2.57005333,25744.0,25743.0,2.330678]
[1694003779531,2.57149333,25744.0,25743.0,2.330678]
[1694003779733,1.97408593,25744.0,25743.0,2.330678]
[1694003779938,1.97396593,25744.0,25743.0,2.330678]
[1694003780138,1.97384593,25744.0,25743.0,2.330678]
[1694003780483,1.97348593,25744.0,25743.0,2.330678]
[1694003780713,1.97378593,25744.0,25743.0,2.330678]
[1694003780890,1.97300593,25744.0,25743.0,2.330678]
[1694003781028,1.97222593,25744.0,25743.0,2.330678]
[1694003781234,1.97210593,25744.0,25743.0,2.330678]
[1694003781547,1.97198593,25744.0,25743.0,2.330678]
[1694003781756,1.97180593,25744.0,25743.0,2.330678]
[1694003781930,1.97174593,25744.0,25743.0,2.330678]
[1694003782141,1.97192593,25744.0,25743.0,2.330678]
[1694003782358,1.97222593,25744.0,25743.0,2.330678]
[1694003782560,1.97648593,25744.0,25743.0,2.330678]
[1694003782765,1.97642593,25744.0,25743.0,2.330678]
[1694003783006,1.97846593,25744.0,25743.0,1.553781]
[1694003783214,1.97996593,25744.0,25743.0,0.776884]
[1694003783447,0.02,25742.0,25741.0,0.776943]
[1694003783635,0.02,25742.0,25741.0,1.553913]
[1694003783636,0.73674333,25742.0,25741.0,1.553913]
[1694003783830,1.02380333,25742.0,25741.0,1.553913]
[1694003784157,1.02320333,25742.0,25741.0,1.553913]
[1694003784482,1.10900252,25742.0,25741.0,1.553913]
[1694003784735,1.10948252,25742.0,25741.0,1.553913]
[1694003784915,1.10924252,25742.0,25741.0,1.553913]
[1694003785146,1.10912252,25742.0,25741.0,2.330883]
[1694003785374,1.10900252,25742.0,25741.0,2.330883]
[1694003785579,1.13288252,25742.0,25741.0,2.330883]
[1694003785784,1.14080252,25742.0,25741.0,2.330883]
[1694003785987,1.14104252,25742.0,25741.0,2.330883]
[1694003786195,1.14092252,25742.0,25741.0,2.330883]
[1694003786375,1.14080252,25742.0,25741.0,2.330883]
[1694003786553,1.16468252,25742.0,25741.0,2.330883]
[1694003786757,1.16324252,25742.0,25741.0,2.330883]
[1694003786957,1.15604252,25742.0,25741.0,2.330883]
[1694003787156,1.15562252,25742.0,25741.0,2.330883]
[1694003787338,1.15526252,25742.0,25741.0,2.330883]
[1694003787513,1.15538252,25742.0,25741.0,2.330883]
[1694003787887,1.15694252,25742.0,25741.0,2.330883]
[1694003788080,1.15658252,25742.0,25741.0,2.330883]
[1694003788390,1.38885509,25742.0,25741.0,2.330883]
[1694003788549,1.16438252,25742.0,25741.0,2.330883]
[1694003788748,1.15910252,25742.0,25741.0,2.330883]
[1694003788952,1.15922252,25742.0,25741.0,2.330883]
[1694003789158,1.15802252,25742.0,25741.0,2.330883]
[1694003789353,1.15796252,25742.0,25741.0,2.330883]
[1694003789576,1.15760252,25742.0,25741.0,2.330883]
[1694003789790,1.03560252,25742.0,25741.0,2.330883]
[1694003789975,1.03554252,25742.0,25741.0,2.330883]
[1694003790150,1.03572252,25742.0,25741.0,2.330883]
[1694003790353,1.03566252,25742.0,25741.0,2.330883]
[1694003790528,1.03470252,25742.0,25741.0,2.330883]
[1694003790734,1.03434252,25742.0,25741.0,1.553913]
[1694003791165,1.34404252,25742.0,25741.0,1.553913]
[1694003791364,1.21838252,25742.0,25741.0,1.56136482]
[1694003791582,1.19060252,25742.0,25741.0,2.33833482]
[1694003791757,1.19306252,25742.0,25741.0,2.33833482]
[1694003791964,1.21646252,25742.0,25741.0,2.33833482]
[1694003792174,1.21484252,25742.0,25741.0,2.33833482]
[1694003792345,1.19072252,25742.0,25741.0,2.33833482]
[1694003792546,1.21448252,25742.0,25741.0,2.33833482]
[1694003792764,1.21436252,25742.0,25741.0,2.33833482]
[1694003792975,1.21454252,25742.0,25741.0,2.33833482]
[1694003793199,1.21352252,25742.0,25741.0,2.33833482]
[1694003793331,1.21370252,25742.0,25741.0,2.33833482]
[1694003793537,1.21658252,25742.0,25741.0,2.33833482]
[1694003793735,1.21616252,25742.0,25741.0,2.33833482]
[1694003793984,1.21592252,25742.0,25741.0,2.33833482]
[1694003794185,1.21598252,25742.0,25741.0,2.33833482]
[1694003794381,1.21592252,25742.0,25741.0,2.33833482]
[1694003794585,1.21550252,25742.0,25741.0,2.33833482]
[1694003794816,1.21520252,25742.0,25741.0,2.33833482]
[1694003794998,1.21034252,25742.0,25741.0,2.33833482]
[1694003795197,1.20914252,25742.0,25741.0,2.33833482]
[1694003795378,1.25896717,25742.0,25741.0,2.33833482]
[1694003795582,1.07086911,25742.0,25741.0,2.33833482]
[1694003796054,1.07164911,25742.0,25741.0,2.33833482]
[1694003796270,1.06960911,25742.0,25741.0,2.33833482]
[1694003796445,1.06924911,25742.0,25741.0,2.33833482]
[1694003796679,1.06918911,25742.0,25741.0,2.33833482]
[1694003796882,1.07728911,25742.0,25741.0,2.33833482]
[1694003797092,1.07740911,25742.0,25741.0,2.33833482]
[1694003797296,1.07716911,25742.0,25741.0,2.33833482]
[1694003797506,1.07158911,25742.0,25741.0,2.33833482]
[1694003797705,1.07068911,25742.0,25741.0,2.33833482]
[1694003797911,1.07056911,25742.0,25741.0,2.33833482]
[1694003798041,1.07050911,25742.0,25741.0,2.33833482]
[1694003798251,1.06978911,25742.0,25741.0,2.33833482]
[1694003798449,1.06786911,25742.0,25741.0,2.33833482]
[1694003798654,1.06774911,25742.0,25741.0,2.33833482]
[1694003798857,1.06624911,25742.0,25741.0,2.33833482]
[1694003799063,1.00090911,25742.0,25741.0,2.33833482]
[1694003799462,0.90588586,25742.0,25741.0,2.33833482]
[1694003800057,0.81278911,25742.0,25741.0,2.33833482]
[1694003804334,0.87812911,25742.0,25741.0,2.33833482]
[1694003804538,0.99908717,25742.0,25741.0,2.33833482]
[1694003806172,1.06442717,25742.0,25741.0,2.33833482]
[1694003806379,1.06502717,25742.0,25741.0,2.33833482]
[1694003806573,1.06460717,25742.0,25741.0,2.33833482]
[1694003806783,1.06478717,25742.0,25741.0,2.33833482]
[1694003806951,0.99908717,25742.0,25741.0,2.33833482]
[1694003809240,0.92478333,25742.0,25741.0,2.33833482]
[1694003809439,0.85944333,25742.0,25741.0,2.33833482]
[1694003810774,0.92478333,25742.0,25741.0,2.33833482]
[1694003810953,0.92556333,25742.0,25741.0,2.33833482]
[1694003811154,0.92562333,25742.0,25741.0,2.33833482]
[1694003811354,0.92604333,25742.0,25741.0,2.33833482]
[1694003811581,0.92568333,25742.0,25741.0,2.33833482]
[1694003811782,0.92544333,25742.0,25741.0,2.33833482]
[1694003811981,0.92508333,25742.0,25741.0,2.33833482]
[1694003812182,0.92514333,25742.0,25741.0,2.33833482]
[1694003812320,0.92916333,25742.0,25741.0,2.33833482]
[1694003813243,0.92934333,25742.0,25741.0,2.33833482]
[1694003813582,0.92958333,25742.0,25741.0,2.33833482]
[1694003813740,0.92712333,25742.0,25741.0,2.33833482]
[1694003813947,1.22252135,25742.0,25741.0,2.33833482]
[1694003814283,1.22210135,25742.0,25741.0,2.33833482]
[1694003814447,1.15598135,25742.0,25741.0,2.33833482]
[1694003814649,0.85944333,25742.0,25741.0,2.33833482]
[1694003814976,1.15308672,25742.0,25741.0,2.33833482]
[1694003818213,0.96678866,25742.0,25741.0,2.33833482]
[1694003822153,0.77128866,25742.0,25741.0,2.33833482]
[1694003824068,0.83764866,25742.0,25741.0,2.33833482]
[1694003824308,0.84268866,25742.0,25741.0,2.33833482]
[1694003824515,0.84712866,25742.0,25741.0,2.33833482]
[1694003824713,1.19718369,25742.0,25741.0,2.33833482]
[1694003824917,1.19850369,25742.0,25741.0,2.33833482]
[1694003825118,1.19598369,25742.0,25741.0,2.33833482]
[1694003825322,0.96101112,25742.0,25741.0,2.33833482]
[1694003825481,0.96095112,25742.0,25741.0,2.33833482]
[1694003826050,0.96215112,25742.0,25741.0,2.33833482]
[1694003826254,0.96209112,25742.0,25741.0,2.33833482]
[1694003826453,1.19446296,25742.0,25741.0,2.33833482]
[1694003826653,0.96149112,25742.0,25741.0,2.33833482]
[1694003826856,0.96143112,25742.0,25741.0,2.33833482]
[1694003827195,0.61437609,25742.0,25741.0,2.33833482]
[1694003827402,0.61083609,25742.0,25741.0,2.33833482]
[1694003827604,0.61263609,25742.0,25741.0,2.33833482]
[1694003827982,0.61293609,25742.0,25741.0,2.33833482]
[1694003828882,0.61287609,25742.0,25741.0,2.33833482]
[1694003829094,0.61149609,25742.0,25741.0,2.33833482]
[1694003829314,0.61137609,25742.0,25741.0,2.33833482]
[1694003829513,0.61029609,25742.0,25741.0,2.33833482]
[1694003829648,0.61023609,25742.0,25741.0,2.33833482]
[1694003830060,0.61029609,25742.0,25741.0,2.33833482]
[1694003830270,0.61077609,25742.0,25741.0,2.33833482]
[1694003830470,0.61071609,25742.0,25741.0,2.33833482]
[1694003830703,0.61119609,25742.0,25741.0,2.33833482]
[1694003831259,0.61113609,25742.0,25741.0,2.33833482]
[1694003831382,0.61107609,25742.0,25741.0,2.33833482]
[1694003831587,0.61101609,25742.0,25741.0,2.33833482]
[1694003831783,0.61053609,25742.0,25741.0,2.33833482]
[1694003832036,0.61029609,25742.0,25741.0,2.33833482]
[1694003832242,0.61023609,25742.0,25741.0,2.33833482]
[1694003832411,0.61017609,25742.0,25741.0,2.33833482]
[1694003832620,0.61041609,25742.0,25741.0,2.33833482]
[1694003833092,0.61023609,25742.0,25741.0,2.33833482]
[1694003833298,0.61143609,25742.0,25741.0,2.33833482]
[1694003834363,0.61371609,25742.0,25741.0,2.33833482]
[1694003834569,0.60795609,25742.0,25741.0,2.33833482]
[1694003834767,0.60759609,25742.0,25741.0,2.33833482]
[1694003834972,0.53841609,25742.0,25741.0,2.33833482]
[1694003837332,0.6876547,25742.0,25741.0,2.33833482]
[1694003838421,0.74842613,25742.0,25741.0,2.33833482]
[1694003848093,0.5154167,25742.0,25741.0,2.33833482]
[1694003848317,0.74849011,25742.0,25741.0,2.33833482]
[1694003848523,0.5154167,25742.0,25741.0,2.33833482]
[1694003850286,0.5154167,25742.0,25741.0,1.56139182]
[1694003851039,0.5154167,25742.0,25741.0,2.33836182]
[1694003859178,0.5152667,25742.0,25741.0,2.33836182]
[1694003872154,0.74855338,25742.0,25741.0,2.33836182]
[1694003873806,0.5152667,25742.0,25741.0,2.33836182]
[1694003876205,0.5818667,25742.0,25741.0,2.33836182]
[1694003876402,0.5152667,25742.0,25741.0,2.33836182]
[1694003876954,0.5806067,25742.0,25741.0,2.33836182]
[1694003877153,0.5152667,25742.0,25741.0,2.33836182]
[1694003889405,0.5152667,25742.0,25741.0,2.33091]
[1694003889740,0.62123616,25742.0,25741.0,2.33091]
[1694003890565,0.68669616,25742.0,25741.0,2.33091]
[1694003890771,0.68771616,25742.0,25741.0,2.33091]
[1694003890985,0.69017616,25742.0,25741.0,2.33091]
[1694003891389,0.69005616,25742.0,25741.0,2.33091]
[1694003891588,0.68999616,25742.0,25741.0,2.33091]
[1694003891822,0.68981616,25742.0,25741.0,2.33091]